[Event "Titled Tuesday Blitz March 29 Early 2022"]
[White "Csonka, Balazs"]
[Black "Maghsoodloo, Parham"]
[WhiteFideId "742910"]
[BlackFideId "12539929"]
[WhiteElo "2404"]
[BlackElo "2630"]
[Result "1-0"]
[Round "03"]
[TimeControl "180+1"]
[Date "2022.03.29"]
[WhiteClock "0:00:04"]
[BlackClock "0:00:05"]

1. d4 {[%clk 0:03:00]}  Nf6 {[%clk 0:02:59]} 2. c4 {[%clk 0:03:00]}  g6 {[%clk 0:02:57]} 3. Nc3 {[%clk 0:02:55]}  d5 {[%clk 0:02:56]} 4. cxd5 {[%clk 0:02:52]}  Nxd5 {[%clk 0:02:57]} 5. e4 {[%clk 0:02:52]}  Nxc3 {[%clk 0:02:57]} 6. bxc3 {[%clk 0:02:52]}  Bg7 {[%clk 0:02:58]} 7. Be3 {[%clk 0:02:51]}  c5 {[%clk 0:02:57]} 8. Rc1 {[%clk 0:02:52]}  Qa5 {[%clk 0:02:56]} 9. Qd2 {[%clk 0:02:52]}  O-O {[%clk 0:02:55]} 10. Nf3 {[%clk 0:02:52]}  Rd8 {[%clk 0:02:54]} 11. d5 {[%clk 0:02:51]}  e6 {[%clk 0:02:48]} 12. Bg5 {[%clk 0:02:51]}  f6 {[%clk 0:02:48]} 13. Be3 {[%clk 0:02:51]}  Nc6 {[%clk 0:02:47]} 14. Bd3 {[%clk 0:02:50]}  exd5 {[%clk 0:02:24]} 15. exd5 {[%clk 0:02:51]}  c4 {[%clk 0:02:24]} 16. Bxc4 {[%clk 0:02:51]}  Be6 {[%clk 0:02:24]} 17. Rd1 {[%clk 0:02:51]}  Ne7 {[%clk 0:02:19]} 18. dxe6 {[%clk 0:02:51]}  Rxd2 {[%clk 0:02:18]} 19. Rxd2 {[%clk 0:02:52]}  Qxc3 {[%clk 0:02:18]} 20. Bb3 {[%clk 0:02:52]}  Qc1+ {[%clk 0:02:18]} 21. Rd1 {[%clk 0:02:52]}  Qc3+ {[%clk 0:02:18]} 22. Rd2 {[%clk 0:02:53]}  a5 {[%clk 0:02:16]} 23. O-O {[%clk 0:02:46]}  a4 {[%clk 0:02:16]} 24. Bxa4 {[%clk 0:02:46]}  h5 {[%clk 0:01:59]} 25. Bb3 {[%clk 0:02:41]}  Re8 {[%clk 0:01:57]} 26. Rd7 {[%clk 0:02:32]}  Nf5 {[%clk 0:01:57]} 27. Rd8 {[%clk 0:02:01]}  Kf8 {[%clk 0:01:21]} 28. Rxe8+ {[%clk 0:01:56]}  Kxe8 {[%clk 0:01:21]} 29. Rc1 {[%clk 0:01:55]}  Qa5 {[%clk 0:01:13]} 30. Rc8+ {[%clk 0:01:38]}  Ke7 {[%clk 0:01:13]} 31. Rc5 {[%clk 0:01:24]}  Qb4 {[%clk 0:00:50]} 32. Rc7+ {[%clk 0:01:16]}  Kd8 {[%clk 0:00:49]} 33. Rd7+ {[%clk 0:01:10]}  Ke8 {[%clk 0:00:42]} 34. Bd2 {[%clk 0:01:08]}  Qe4 {[%clk 0:00:35]} 35. h3 {[%clk 0:00:29]}  Bf8 {[%clk 0:00:31]} 36. Bd5 {[%clk 0:00:19]}  Qb1+ {[%clk 0:00:26]} 37. Be1 {[%clk 0:00:17]}  Bc5 {[%clk 0:00:18]} 38. Rxb7 {[%clk 0:00:16]}  Qd1 {[%clk 0:00:18]} 39. Bc6+ {[%clk 0:00:11]}  Kf8 {[%clk 0:00:18]} 40. Rb8+ {[%clk 0:00:10]}  Kg7 {[%clk 0:00:18]} 41. Rb7+ {[%clk 0:00:11]}  Kh6 {[%clk 0:00:18]} 42. Rd7 {[%clk 0:00:08]}  Qe2 {[%clk 0:00:16]} 43. Ba4 {[%clk 0:00:06]}  Qxe6 {[%clk 0:00:15]} 44. Rd1 {[%clk 0:00:06]}  Qxa2 {[%clk 0:00:15]} 45. Bd7 {[%clk 0:00:07]}  Nd6 {[%clk 0:00:14]} 46. Bc6 {[%clk 0:00:06]}  Qe2 {[%clk 0:00:13]} 47. Rc1 {[%clk 0:00:06]}  Bb6 {[%clk 0:00:13]} 48. Rb1 {[%clk 0:00:06]}  Ba7 {[%clk 0:00:12]} 49. Bd2+ {[%clk 0:00:05]}  g5 {[%clk 0:00:12]} 50. Rf1 {[%clk 0:00:04]}  Nc4 {[%clk 0:00:11]} 51. Bc1 {[%clk 0:00:04]}  Kg7 {[%clk 0:00:10]} 52. Bb5 {[%clk 0:00:04]}  g4 {[%clk 0:00:10]} 53. Bxc4 {[%clk 0:00:04]}  Qxc4 {[%clk 0:00:09]} 54. hxg4 {[%clk 0:00:05]}  hxg4 {[%clk 0:00:09]} 55. Nh4 {[%clk 0:00:05]}  Qd3 {[%clk 0:00:08]} 56. g3 {[%clk 0:00:05]}  Qxg3+ {[%clk 0:00:08]} 57. Ng2 {[%clk 0:00:06]}  Qh3 {[%clk 0:00:08]} 58. Be3 {[%clk 0:00:07]}  g3 {[%clk 0:00:07]} 59. fxg3 {[%clk 0:00:05]}  Bxe3+ {[%clk 0:00:08]} 60. Nxe3 {[%clk 0:00:06]}  Qxg3+ {[%clk 0:00:08]} 61. Ng2 {[%clk 0:00:07]}  Kg6 {[%clk 0:00:08]} 62. Rf4 {[%clk 0:00:07]}  Kg5 {[%clk 0:00:08]} 63. Rf2 {[%clk 0:00:08]}  f5 {[%clk 0:00:08]} 64. Rf4 {[%clk 0:00:07]}  Kf6 {[%clk 0:00:05]} 65. Rf2 {[%clk 0:00:05]}  Ke5 {[%clk 0:00:05]} 66. Rf4 {[%clk 0:00:06]}  Qg5 {[%clk 0:00:05]} 67. Rf2 {[%clk 0:00:06]}  Ke4 {[%clk 0:00:05]} 68. Rf4+ {[%clk 0:00:04]}  Ke5 {[%clk 0:00:05]} 69. Rf2 {[%clk 0:00:04]}  Qg3 {[%clk 0:00:05]} 70. Rf4 {[%clk 0:00:04]}  Qd3 {[%clk 0:00:06]} 71. Rf2 {[%clk 0:00:04]}  Qd4 {[%clk 0:00:06]} 72. Kf1 {[%clk 0:00:05]}  Qd1+ {[%clk 0:00:06]} 73. Ne1 {[%clk 0:00:05]}  f4 {[%clk 0:00:06]} 74. Re2+ {[%clk 0:00:05]}  Kf5 {[%clk 0:00:06]} 75. Rf2 {[%clk 0:00:05]}  Kg4 {[%clk 0:00:07]} 76. Rg2+ {[%clk 0:00:05]}  Kh3 {[%clk 0:00:07]} 77. Rf2 {[%clk 0:00:05]}  Qc1 {[%clk 0:00:07]} 78. Rf3+ {[%clk 0:00:05]}  Kg4 {[%clk 0:00:07]} 79. Rf2 {[%clk 0:00:05]}  Qc4+ {[%clk 0:00:08]} 80. Kg2 {[%clk 0:00:05]}  Qe4+ {[%clk 0:00:08]} 81. Nf3 {[%clk 0:00:05]}  Qd5 {[%clk 0:00:08]} 82. Rf1 {[%clk 0:00:06]}  Qe4 {[%clk 0:00:07]} 83. Rf2 {[%clk 0:00:06]}  Qc6 {[%clk 0:00:07]} 84. Rf1 {[%clk 0:00:07]}  Qd5 {[%clk 0:00:07]} 85. Rf2 {[%clk 0:00:08]}  Qe4 {[%clk 0:00:08]} 86. Rf1 {[%clk 0:00:08]}  Qh7 {[%clk 0:00:08]} 87. Nh2+ {[%clk 0:00:06]}  Kf5 {[%clk 0:00:08]} 88. Nf3 {[%clk 0:00:07]}  Qg7+ {[%clk 0:00:08]} 89. Kf2 {[%clk 0:00:07]}  Qg3+ {[%clk 0:00:08]} 90. Ke2 {[%clk 0:00:07]}  Ke4 {[%clk 0:00:07]} 91. Nd2+ {[%clk 0:00:07]}  Kd4 {[%clk 0:00:07]} 92. Nf3+ {[%clk 0:00:07]}  Kd5 {[%clk 0:00:07]} 93. Rf2 {[%clk 0:00:07]}  Qg6 {[%clk 0:00:06]} 94. Kf1 {[%clk 0:00:07]}  Ke4 {[%clk 0:00:05]} 95. Ng1 {[%clk 0:00:06]}  Qa6+ {[%clk 0:00:05]} 96. Kg2 {[%clk 0:00:04]}  Qd6 {[%clk 0:00:04]} 97. Re2+ {[%clk 0:00:03]}  Kf5 {[%clk 0:00:05]} 98. Rf2 {[%clk 0:00:04]}  Qg6+ {[%clk 0:00:05]} 99. Kf1 {[%clk 0:00:04]}  Qg4 {[%clk 0:00:05]} 100. Nf3 {[%clk 0:00:04]}  Ke4 {[%clk 0:00:04]} 101. Nd2+ {[%clk 0:00:03]}  Ke3 {[%clk 0:00:05]} 102. Nc4+ {[%clk 0:00:04]}  Kd3 {[%clk 0:00:05]} 103. Ne5+ {[%clk 0:00:04]} 1-0


[Site "https://www.chess.com"]

[Event "Titled Tuesday Blitz March 29 Early 2022"]
[White "Czerw, Dawid"]
[Black "Liyanage, Ranindu Dilshan"]
[WhiteFideId "1145746"]
[BlackFideId "9915834"]
[WhiteElo "2125"]
[BlackElo "1858"]
[Result "0-1"]
[Round "03"]
[TimeControl "180+1"]
[Date "2022.03.30"]
[WhiteClock "0:01:01"]
[BlackClock "0:02:03"]

1. d4 {[%clk 0:03:00]}  Nf6 {[%clk 0:03:00]} 2. c4 {[%clk 0:03:00]}  e6 {[%clk 0:03:00]} 3. Nc3 {[%clk 0:03:00]}  Bb4 {[%clk 0:03:01]} 4. f3 {[%clk 0:03:00]}  d5 {[%clk 0:02:56]} 5. a3 {[%clk 0:02:59]}  Bxc3+ {[%clk 0:02:56]} 6. bxc3 {[%clk 0:03:00]}  O-O {[%clk 0:02:55]} 7. e3 {[%clk 0:03:00]}  c5 {[%clk 0:02:54]} 8. cxd5 {[%clk 0:03:00]}  Nxd5 {[%clk 0:02:55]} 9. Bd2 {[%clk 0:02:48]}  Nc6 {[%clk 0:02:46]} 10. Bd3 {[%clk 0:02:46]}  cxd4 {[%clk 0:02:43]} 11. cxd4 {[%clk 0:02:47]}  e5 {[%clk 0:02:43]} 12. e4 {[%clk 0:02:36]}  Nf4 {[%clk 0:02:40]} 13. Bxf4 {[%clk 0:02:32]}  exf4 {[%clk 0:02:41]} 14. d5 {[%clk 0:02:27]}  Qh4+ {[%clk 0:02:37]} 15. Kf1 {[%clk 0:02:24]}  Ne5 {[%clk 0:02:35]} 16. Ne2 {[%clk 0:02:19]}  Nxf3 {[%clk 0:02:13]} 17. gxf3 {[%clk 0:01:49]}  Bh3+ {[%clk 0:02:11]} 18. Kg1 {[%clk 0:01:49]}  Qg5+ {[%clk 0:02:09]} 19. Ng3 {[%clk 0:01:43]}  fxg3 {[%clk 0:02:10]} 20. Qe2 {[%clk 0:01:01]}  g2 {[%clk 0:02:03]} 0-1


[Site "https://www.chess.com"]

[Event "Titled Tuesday Blitz March 29 Early 2022"]
[White "De Souza, Cristiano Gomes"]
[Black "Heinemann, Josefine"]
[WhiteFideId "2151758"]
[BlackFideId "12900460"]
[WhiteElo "2068"]
[BlackElo "2300"]
[Result "0-1"]
[Round "03"]
[TimeControl "180+1"]
[Date "2022.03.30"]
[WhiteClock "0:00:35"]
[BlackClock "0:00:38"]

1. d4 {[%clk 0:03:00]}  d5 {[%clk 0:02:56]} 2. c4 {[%clk 0:03:00]}  c6 {[%clk 0:02:57]} 3. Nf3 {[%clk 0:02:58]}  Nf6 {[%clk 0:02:56]} 4. Nc3 {[%clk 0:02:58]}  dxc4 {[%clk 0:02:56]} 5. a4 {[%clk 0:02:56]}  Bf5 {[%clk 0:02:55]} 6. e3 {[%clk 0:02:56]}  e6 {[%clk 0:02:54]} 7. Ne5 {[%clk 0:02:55]}  Bb4 {[%clk 0:02:47]} 8. Bxc4 {[%clk 0:02:50]}  O-O {[%clk 0:02:42]} 9. O-O {[%clk 0:02:49]}  Nbd7 {[%clk 0:02:38]} 10. Nxd7 {[%clk 0:02:49]}  Qxd7 {[%clk 0:02:37]} 11. f3 {[%clk 0:02:49]}  Bg6 {[%clk 0:02:32]} 12. e4 {[%clk 0:02:46]}  Rfd8 {[%clk 0:02:16]} 13. Be3 {[%clk 0:02:45]}  a5 {[%clk 0:02:16]} 14. Ne2 {[%clk 0:02:43]}  Qe7 {[%clk 0:02:10]} 15. Qb3 {[%clk 0:02:32]}  Rab8 {[%clk 0:02:01]} 16. Rac1 {[%clk 0:02:20]}  b5 {[%clk 0:01:55]} 17. Bd3 {[%clk 0:02:18]}  Rdc8 {[%clk 0:01:35]} 18. Rfd1 {[%clk 0:02:14]}  Nd7 {[%clk 0:01:31]} 19. Nf4 {[%clk 0:02:07]}  bxa4 {[%clk 0:01:26]} 20. Qxa4 {[%clk 0:02:06]}  c5 {[%clk 0:01:26]} 21. Nxg6 {[%clk 0:02:03]}  hxg6 {[%clk 0:01:25]} 22. h3 {[%clk 0:01:41]}  cxd4 {[%clk 0:01:21]} 23. Bxd4 {[%clk 0:01:40]}  Nc5 {[%clk 0:01:20]} 24. Qc2 {[%clk 0:01:29]}  Kh7 {[%clk 0:01:00]} 25. Bc4 {[%clk 0:01:20]}  a4 {[%clk 0:00:48]} 26. Be3 {[%clk 0:01:18]}  Nb3 {[%clk 0:00:45]} 27. Qe2 {[%clk 0:00:42]}  Nxc1 {[%clk 0:00:41]} 28. Rxc1 {[%clk 0:00:42]}  Bc5 {[%clk 0:00:41]} 29. Kh2 {[%clk 0:00:34]}  Bxe3 {[%clk 0:00:39]} 30. Qxe3 {[%clk 0:00:35]}  Rxb2 {[%clk 0:00:38]} 0-1


[Site "https://www.chess.com"]

[Event "Titled Tuesday Blitz March 29 Early 2022"]
[White "Dreev, Aleksey"]
[Black "Hua, Lefong"]
[WhiteFideId "4100107"]
[BlackFideId "2602253"]
[WhiteElo "2625"]
[BlackElo "2576"]
[Result "1/2-1/2"]
[Round "03"]
[TimeControl "180+1"]
[Date "2022.03.29"]
[WhiteClock "0:00:07"]
[BlackClock "0:00:18"]

1. d4 {[%clk 0:03:00]}  Nf6 {[%clk 0:03:00]} 2. Nf3 {[%clk 0:03:00]}  g6 {[%clk 0:03:00]} 3. Bg5 {[%clk 0:02:59]}  Bg7 {[%clk 0:03:00]} 4. Nbd2 {[%clk 0:02:59]}  O-O {[%clk 0:02:58]} 5. c3 {[%clk 0:02:59]}  d6 {[%clk 0:02:58]} 6. e4 {[%clk 0:02:59]}  c5 {[%clk 0:02:58]} 7. dxc5 {[%clk 0:02:58]}  dxc5 {[%clk 0:02:58]} 8. Bc4 {[%clk 0:02:59]}  h6 {[%clk 0:02:57]} 9. Bh4 {[%clk 0:02:56]}  Nc6 {[%clk 0:02:53]} 10. Qc2 {[%clk 0:02:45]}  Nh5 {[%clk 0:02:46]} 11. O-O {[%clk 0:02:15]}  Qc7 {[%clk 0:02:37]} 12. Rfe1 {[%clk 0:02:13]}  g5 {[%clk 0:02:29]} 13. Bg3 {[%clk 0:02:13]}  Nxg3 {[%clk 0:02:30]} 14. hxg3 {[%clk 0:02:14]}  e6 {[%clk 0:02:27]} 15. Bb5 {[%clk 0:01:57]}  Ne5 {[%clk 0:02:17]} 16. Nxe5 {[%clk 0:01:56]}  Bxe5 {[%clk 0:02:17]} 17. Nf3 {[%clk 0:01:53]}  a6 {[%clk 0:02:13]} 18. Be2 {[%clk 0:01:49]}  b6 {[%clk 0:02:02]} 19. Nxe5 {[%clk 0:01:38]}  Qxe5 {[%clk 0:02:01]} 20. Qb3 {[%clk 0:01:19]}  b5 {[%clk 0:01:53]} 21. a4 {[%clk 0:01:18]}  c4 {[%clk 0:01:45]} 22. Qc2 {[%clk 0:01:10]}  Bb7 {[%clk 0:01:41]} 23. Bf1 {[%clk 0:01:11]}  Bc6 {[%clk 0:01:34]} 24. Qd2 {[%clk 0:01:06]}  Rfd8 {[%clk 0:01:25]} 25. Qe3 {[%clk 0:01:06]}  Qd6 {[%clk 0:00:52]} 26. f4 {[%clk 0:00:33]}  Qd2 {[%clk 0:00:45]} 27. axb5 {[%clk 0:00:22]}  Qxe3+ {[%clk 0:00:39]} 28. Rxe3 {[%clk 0:00:22]}  axb5 {[%clk 0:00:40]} 29. Rxa8 {[%clk 0:00:21]}  Rxa8 {[%clk 0:00:37]} 30. Kf2 {[%clk 0:00:18]}  Ra2 {[%clk 0:00:35]} 31. Re2 {[%clk 0:00:19]}  Kg7 {[%clk 0:00:26]} 32. Ke3 {[%clk 0:00:19]}  Kf6 {[%clk 0:00:23]} 33. Rf2 {[%clk 0:00:19]}  Ke7 {[%clk 0:00:21]} 34. Kd4 {[%clk 0:00:18]}  Ra1 {[%clk 0:00:19]} 35. e5 {[%clk 0:00:14]}  Rd1+ {[%clk 0:00:18]} 36. Kc5 {[%clk 0:00:14]}  Bd7 {[%clk 0:00:18]} 37. Kb4 {[%clk 0:00:10]}  Rb1 {[%clk 0:00:18]} 38. Kc5 {[%clk 0:00:09]}  Rd1 {[%clk 0:00:18]} 39. Kb4 {[%clk 0:00:07]}  Rb1 {[%clk 0:00:18]} 40. Ka3 {[%clk 0:00:07]}  Ra1+ {[%clk 0:00:18]} 41. Kb4 {[%clk 0:00:07]}  Rb1 {[%clk 0:00:18]} 1/2-1/2


[Site "https://www.chess.com"]

[Event "Titled Tuesday Blitz March 29 Early 2022"]
[White "Estrada Nieto, Julian"]
[Black "Sahil, Tickoo"]
[WhiteFideId "5101018"]
[BlackFideId "5019710"]
[WhiteElo "2246"]
[BlackElo "2099"]
[Result "1-0"]
[Round "03"]
[TimeControl "180+1"]
[Date "2022.03.30"]
[WhiteClock "0:00:49"]
[BlackClock "0:00:01"]

1. e4 {[%clk 0:03:00]}  c5 {[%clk 0:02:58]} 2. Nf3 {[%clk 0:03:00]}  d6 {[%clk 0:02:58]} 3. Bb5+ {[%clk 0:03:00]}  Bd7 {[%clk 0:02:58]} 4. Bxd7+ {[%clk 0:03:00]}  Nxd7 {[%clk 0:02:59]} 5. O-O {[%clk 0:03:00]}  Ngf6 {[%clk 0:02:58]} 6. Re1 {[%clk 0:02:59]}  e6 {[%clk 0:02:56]} 7. c3 {[%clk 0:02:58]}  Be7 {[%clk 0:02:55]} 8. d4 {[%clk 0:02:58]}  cxd4 {[%clk 0:02:54]} 9. cxd4 {[%clk 0:02:59]}  d5 {[%clk 0:02:52]} 10. e5 {[%clk 0:02:59]}  Ne4 {[%clk 0:02:52]} 11. Nbd2 {[%clk 0:03:00]}  Nxd2 {[%clk 0:02:43]} 12. Bxd2 {[%clk 0:03:01]}  O-O {[%clk 0:02:42]} 13. Rc1 {[%clk 0:03:00]}  Rc8 {[%clk 0:02:37]} 14. Qa4 {[%clk 0:03:00]}  a6 {[%clk 0:02:27]} 15. Rxc8 {[%clk 0:02:52]}  Qxc8 {[%clk 0:02:25]} 16. Rc1 {[%clk 0:02:53]}  Qd8 {[%clk 0:02:22]} 17. Ba5 {[%clk 0:02:48]}  b6 {[%clk 0:02:12]} 18. Bb4 {[%clk 0:02:46]}  Bxb4 {[%clk 0:02:07]} 19. Qxb4 {[%clk 0:02:46]}  Nb8 {[%clk 0:01:37]} 20. h4 {[%clk 0:02:39]}  h6 {[%clk 0:01:34]} 21. Qc3 {[%clk 0:02:38]}  b5 {[%clk 0:01:27]} 22. Qc7 {[%clk 0:02:36]}  Qe8 {[%clk 0:01:05]} 23. Qd6 {[%clk 0:02:22]}  Qd8 {[%clk 0:00:42]} 24. Qxd8 {[%clk 0:02:16]}  Rxd8 {[%clk 0:00:42]} 25. Rc7 {[%clk 0:02:16]}  Kf8 {[%clk 0:00:38]} 26. Kf1 {[%clk 0:02:12]}  Ke8 {[%clk 0:00:38]} 27. Ke2 {[%clk 0:01:45]}  Rd7 {[%clk 0:00:37]} 28. Rc8+ {[%clk 0:01:44]}  Rd8 {[%clk 0:00:36]} 29. Rc2 {[%clk 0:01:36]}  Kd7 {[%clk 0:00:28]} 30. Nd2 {[%clk 0:01:29]}  Rc8 {[%clk 0:00:25]} 31. Rxc8 {[%clk 0:01:28]}  Kxc8 {[%clk 0:00:25]} 32. Nb3 {[%clk 0:01:24]}  Nd7 {[%clk 0:00:19]} 33. g4 {[%clk 0:01:21]}  g6 {[%clk 0:00:15]} 34. f4 {[%clk 0:01:19]}  Kc7 {[%clk 0:00:14]} 35. Kd3 {[%clk 0:01:18]}  Kb6 {[%clk 0:00:14]} 36. Nd2 {[%clk 0:01:08]}  a5 {[%clk 0:00:14]} 37. Nf1 {[%clk 0:01:04]}  Kc6 {[%clk 0:00:13]} 38. Ne3 {[%clk 0:01:04]}  Nb6 {[%clk 0:00:13]} 39. b3 {[%clk 0:01:04]}  a4 {[%clk 0:00:12]} 40. f5 {[%clk 0:01:04]}  gxf5 {[%clk 0:00:12]} 41. gxf5 {[%clk 0:01:03]}  h5 {[%clk 0:00:11]} 42. f6 {[%clk 0:01:01]}  axb3 {[%clk 0:00:10]} 43. axb3 {[%clk 0:01:01]}  Kd7 {[%clk 0:00:08]} 44. Ng2 {[%clk 0:01:01]}  Na8 {[%clk 0:00:04]} 45. Nf4 {[%clk 0:01:00]}  Ke8 {[%clk 0:00:04]} 46. Nxh5 {[%clk 0:00:59]}  Kf8 {[%clk 0:00:04]} 47. Ng7 {[%clk 0:00:52]}  Kg8 {[%clk 0:00:03]} 48. Kc3 {[%clk 0:00:52]}  Nc7 {[%clk 0:00:01]} 49. h5 {[%clk 0:00:50]}  Na6 {[%clk 0:00:01]} 50. Ne8 {[%clk 0:00:49]} 1-0


[Site "https://www.chess.com"]

[Event "Titled Tuesday Blitz March 29 Early 2022"]
[White "Fathy, Elameir"]
[Black "Derjabin, Ilja"]
[WhiteFideId "10600396"]
[BlackFideId "14104768"]
[WhiteElo "2311"]
[BlackElo "2341"]
[Result "0-1"]
[Round "03"]
[TimeControl "180+1"]
[Date "2022.03.30"]
[WhiteClock "0:00:38"]
[BlackClock "0:02:13"]

1. d4 {[%clk 0:03:00]}  Nf6 {[%clk 0:02:59]} 2. c4 {[%clk 0:03:00]}  c5 {[%clk 0:02:59]} 3. d5 {[%clk 0:03:00]}  b5 {[%clk 0:02:59]} 4. cxb5 {[%clk 0:03:00]}  a6 {[%clk 0:03:00]} 5. bxa6 {[%clk 0:03:01]}  Bxa6 {[%clk 0:03:00]} 6. Nc3 {[%clk 0:03:01]}  d6 {[%clk 0:03:01]} 7. e4 {[%clk 0:03:02]}  Bxf1 {[%clk 0:03:01]} 8. Kxf1 {[%clk 0:03:03]}  g6 {[%clk 0:03:01]} 9. g3 {[%clk 0:03:03]}  Qc8 {[%clk 0:03:01]} 10. Kg2 {[%clk 0:03:04]}  Bg7 {[%clk 0:03:01]} 11. Nf3 {[%clk 0:03:03]}  Qb7 {[%clk 0:03:01]} 12. a4 {[%clk 0:02:58]}  O-O {[%clk 0:03:00]} 13. Ra3 {[%clk 0:02:55]}  Na6 {[%clk 0:02:59]} 14. Qe2 {[%clk 0:02:46]}  Nb4 {[%clk 0:02:58]} 15. Nb5 {[%clk 0:02:43]}  Ra6 {[%clk 0:02:46]} 16. b3 {[%clk 0:02:22]}  e6 {[%clk 0:02:45]} 17. dxe6 {[%clk 0:02:04]}  fxe6 {[%clk 0:02:46]} 18. Re1 {[%clk 0:01:55]}  d5 {[%clk 0:02:34]} 19. exd5 {[%clk 0:01:47]}  exd5 {[%clk 0:02:33]} 20. Qe7 {[%clk 0:01:07]}  Qxe7 {[%clk 0:02:20]} 21. Rxe7 {[%clk 0:01:08]}  d4 {[%clk 0:02:20]} 22. Bd2 {[%clk 0:00:47]}  Nfd5 {[%clk 0:02:15]} 23. Rd7 {[%clk 0:00:38]}  Raf6 {[%clk 0:02:13]} 0-1


[Site "https://www.chess.com"]

[Event "Titled Tuesday Blitz March 29 Early 2022"]
[White "Fiol, Fabrice"]
[Black "Gabdrakhmanov, Azat"]
[WhiteFideId "611670"]
[BlackFideId "34189197"]
[WhiteElo "2445"]
[BlackElo "2279"]
[Result "0-1"]
[Round "03"]
[TimeControl "180+1"]
[Date "2022.03.30"]
[WhiteClock "0:00:02"]
[BlackClock "0:00:15"]

1. e4 {[%clk 0:03:00]}  c6 {[%clk 0:03:00]} 2. Nf3 {[%clk 0:02:57]}  d6 {[%clk 0:02:59]} 3. d4 {[%clk 0:02:51]}  g6 {[%clk 0:02:57]} 4. a4 {[%clk 0:02:50]}  Bg7 {[%clk 0:02:57]} 5. Nc3 {[%clk 0:02:50]}  Nd7 {[%clk 0:02:56]} 6. h3 {[%clk 0:02:50]}  Ngf6 {[%clk 0:02:53]} 7. g4 {[%clk 0:02:50]}  e5 {[%clk 0:02:48]} 8. Bg2 {[%clk 0:02:50]}  O-O {[%clk 0:02:48]} 9. O-O {[%clk 0:02:50]}  exd4 {[%clk 0:02:48]} 10. Nxd4 {[%clk 0:02:50]}  Re8 {[%clk 0:02:48]} 11. Re1 {[%clk 0:02:40]}  h5 {[%clk 0:02:40]} 12. g5 {[%clk 0:02:39]}  Nh7 {[%clk 0:02:40]} 13. h4 {[%clk 0:02:30]}  Ne5 {[%clk 0:02:39]} 14. f3 {[%clk 0:02:22]}  Nc4 {[%clk 0:01:30]} 15. Kh1 {[%clk 0:01:58]}  Qa5 {[%clk 0:01:15]} 16. Qd3 {[%clk 0:01:48]}  Ne5 {[%clk 0:01:09]} 17. Qe3 {[%clk 0:01:46]}  Bd7 {[%clk 0:01:04]} 18. Nb3 {[%clk 0:01:44]}  Qc7 {[%clk 0:00:59]} 19. a5 {[%clk 0:01:40]}  d5 {[%clk 0:00:54]} 20. Qf2 {[%clk 0:01:17]}  Nc4 {[%clk 0:00:51]} 21. Nc5 {[%clk 0:01:08]}  Rad8 {[%clk 0:00:34]} 22. a6 {[%clk 0:00:58]}  b6 {[%clk 0:00:33]} 23. Nd3 {[%clk 0:00:45]}  d4 {[%clk 0:00:21]} 24. Bf4 {[%clk 0:00:44]}  Qc8 {[%clk 0:00:21]} 25. Ne2 {[%clk 0:00:35]}  Bh3 {[%clk 0:00:20]} 26. b3 {[%clk 0:00:29]}  Ne3 {[%clk 0:00:19]} 27. Bxe3 {[%clk 0:00:22]}  dxe3 {[%clk 0:00:19]} 28. Qxe3 {[%clk 0:00:23]}  Bxg2+ {[%clk 0:00:19]} 29. Kxg2 {[%clk 0:00:22]}  Bxa1 {[%clk 0:00:20]} 30. Rxa1 {[%clk 0:00:22]}  c5 {[%clk 0:00:20]} 31. Ndf4 {[%clk 0:00:13]}  c4 {[%clk 0:00:20]} 32. b4 {[%clk 0:00:09]}  Nf8 {[%clk 0:00:18]} 33. Qf2 {[%clk 0:00:06]}  Qc6 {[%clk 0:00:17]} 34. Nc3 {[%clk 0:00:03]}  Ne6 {[%clk 0:00:16]} 35. Ncd5 {[%clk 0:00:04]}  Nxf4+ {[%clk 0:00:15]} 36. Nxf4 {[%clk 0:00:04]}  Qc7 {[%clk 0:00:15]} 37. Nd5 {[%clk 0:00:05]}  Rxd5 {[%clk 0:00:15]} 38. exd5 {[%clk 0:00:05]}  Qd6 {[%clk 0:00:16]} 39. Rd1 {[%clk 0:00:04]}  Re5 {[%clk 0:00:16]} 40. Qd4 {[%clk 0:00:04]}  Re2+ {[%clk 0:00:16]} 41. Kf1 {[%clk 0:00:04]}  Rxc2 {[%clk 0:00:16]} 42. Qf6 {[%clk 0:00:03]}  Qh2 {[%clk 0:00:14]} 43. Qd8+ {[%clk 0:00:02]}  Kh7 {[%clk 0:00:15]} 0-1


[Site "https://www.chess.com"]

[Event "Titled Tuesday Blitz March 29 Early 2022"]
[White "Gaehwiler, Gabriel"]
[Black "Mikhalsky, Vladimir"]
[WhiteFideId "1314530"]
[BlackFideId "14144352"]
[WhiteElo "2383"]
[BlackElo "2301"]
[Result "1-0"]
[Round "03"]
[TimeControl "180+1"]
[Date "2022.03.30"]
[WhiteClock "0:01:10"]
[BlackClock "0:00:53"]

1. Nf3 {[%clk 0:03:00]}  c5 {[%clk 0:02:58]} 2. e4 {[%clk 0:02:59]}  Nc6 {[%clk 0:02:57]} 3. d4 {[%clk 0:02:58]}  cxd4 {[%clk 0:02:57]} 4. Nxd4 {[%clk 0:02:59]}  Nf6 {[%clk 0:02:58]} 5. Nc3 {[%clk 0:02:59]}  e5 {[%clk 0:02:58]} 6. Ndb5 {[%clk 0:02:59]}  d6 {[%clk 0:02:59]} 7. Bg5 {[%clk 0:02:59]}  a6 {[%clk 0:02:59]} 8. Na3 {[%clk 0:02:59]}  b5 {[%clk 0:02:59]} 9. Nd5 {[%clk 0:03:00]}  Be7 {[%clk 0:03:00]} 10. Bxf6 {[%clk 0:03:00]}  Bxf6 {[%clk 0:03:00]} 11. c4 {[%clk 0:03:01]}  b4 {[%clk 0:02:59]} 12. Nc2 {[%clk 0:03:01]}  Rb8 {[%clk 0:02:58]} 13. b3 {[%clk 0:03:01]}  Bg5 {[%clk 0:02:57]} 14. g3 {[%clk 0:03:00]}  O-O {[%clk 0:02:55]} 15. Bg2 {[%clk 0:02:59]}  Qa5 {[%clk 0:02:32]} 16. O-O {[%clk 0:02:56]}  Qc5 {[%clk 0:02:31]} 17. Kh1 {[%clk 0:02:56]}  f5 {[%clk 0:02:20]} 18. exf5 {[%clk 0:01:55]}  Bxf5 {[%clk 0:02:19]} 19. Nde3 {[%clk 0:01:50]}  Bg6 {[%clk 0:02:11]} 20. Qd5+ {[%clk 0:01:45]}  Qxd5 {[%clk 0:01:55]} 21. Bxd5+ {[%clk 0:01:45]}  Kh8 {[%clk 0:01:53]} 22. Bxc6 {[%clk 0:01:45]}  Bd3 {[%clk 0:01:49]} 23. Kg2 {[%clk 0:01:35]}  Bxf1+ {[%clk 0:01:47]} 24. Rxf1 {[%clk 0:01:36]}  a5 {[%clk 0:01:44]} 25. Rd1 {[%clk 0:01:36]}  Bxe3 {[%clk 0:01:31]} 26. Nxe3 {[%clk 0:01:35]}  Rf6 {[%clk 0:01:31]} 27. f3 {[%clk 0:01:24]}  Rc8 {[%clk 0:01:28]} 28. Be4 {[%clk 0:01:22]}  Rb8 {[%clk 0:01:18]} 29. Rd5 {[%clk 0:01:21]}  a4 {[%clk 0:01:17]} 30. bxa4 {[%clk 0:01:19]}  b3 {[%clk 0:01:17]} 31. axb3 {[%clk 0:01:16]}  Rxb3 {[%clk 0:01:17]} 32. Rb5 {[%clk 0:01:14]}  Rxb5 {[%clk 0:01:10]} 33. axb5 {[%clk 0:01:12]}  Rf8 {[%clk 0:01:07]} 34. b6 {[%clk 0:01:12]}  Rb8 {[%clk 0:01:06]} 35. b7 {[%clk 0:01:12]}  Kg8 {[%clk 0:01:06]} 36. Nf5 {[%clk 0:01:12]}  Kf8 {[%clk 0:01:06]} 37. Nxd6 {[%clk 0:01:12]}  Ke7 {[%clk 0:01:06]} 38. Nb5 {[%clk 0:01:11]}  Kd7 {[%clk 0:01:03]} 39. c5 {[%clk 0:01:11]}  Rf8 {[%clk 0:00:55]} 40. c6+ {[%clk 0:01:11]}  Ke6 {[%clk 0:00:54]} 41. c7 {[%clk 0:01:12]}  Kd7 {[%clk 0:00:53]} 42. c8=Q+ {[%clk 0:01:10]} 1-0


[Site "https://www.chess.com"]